[Event "FRA-ch Youth U16 2018"]
[Site "Agen"]
[Date "2018.04.16"]
[Round "2"]
[White "Vlachos, Anatole"]
[Black "Laffonta, Matthias"]
[Result "*"]
[ECO "B06"]
[WhiteElo "2346"]
[BlackElo "1944"]
[Annotator "ChessBase"]
[PlyCount "20"]
[EventDate "2018.??.??"]
[EventType "swiss"]
[EventCountry "FRA"]
[SourceTitle "playchess.com"]
[Source "ChessBase"]
[SourceQuality "1"]
[TimeControl "5400+30"]

1. e4 {[%emt 0:00:00]} g6 {[%emt 0:00:06]} 2. d4 {[%emt 0:00:00]} Bg7 {[%emt 0:00:03]} 3. Nc3 {[%emt 0:00:11]} d6 {[%emt 0:00:06]} 4. Be3 {[%emt 0:00:58]} a6 {[%emt 0:00:00]} 5. Qd2 {[%emt 0:00:51]} b5 {[%emt 0:00:07]} 6. O-O-O {[%emt 0:01:52]} Bb7 {[%emt 0:00:33]} 7. f3 {[%emt 0:00:48]} Nd7 {[%emt 0:00:18]} 8. h4 {[%emt 0:10:25]} h5 {[%emt 0:00:12]} 9. Nh3 {[%emt 0:04:47]} Ngf6 {[%emt 0:04:22]} 10. Ng5 {[%emt 0:05:31]} c5 {[%emt 0:00:40]} *

[Event "FRA-ch Youth U16 2018"]
[Site "Agen"]
[Date "2018.04.16"]
[Round "2"]
[White "Djidjeli, Sarah"]
[Black "Lagarde, Adeline"]
[Result "1-0"]
[ECO "B30"]
[WhiteElo "1903"]
[BlackElo "1621"]
[Annotator "NA RC"]
[PlyCount "59"]
[EventDate "2018.??.??"]
[EventType "swiss"]
[EventCountry "FRA"]
[SourceTitle "playchess.com"]
[Source "ChessBase"]
[SourceQuality "1"]
[TimeControl "5400+30"]

{[%evp 9,58,12,0,-1,0,0,14,-4,32767,32767,32767,32767,32767,32767,32767,89,105,99,116,100,119,108,130,118,122,132,32767,32767,32767,224,32767,32767,32767,32767,1143,1055,905,1226,1881,11864,6595,29985,29993,1900,29992,5561,29995,29993,32767,29999,29999]} 1. e4 {[%emt 0:00:00]} c5 {[%emt 0:00:10]} 2. Nf3 {[%emt 0:00:00]} Nc6 {[%emt 0:00:17]} 3. Bb5 {[%emt 0:00:00]} e6 {[%emt 0:00:25]} 4. O-O {[%emt 0:01:12]} Nge7 {[%emt 0:02:01]} 5. Nc3 {[%emt 0:10:20]} a6 {[%emt 0:02:11]} 6. Bxc6 {[%emt 0:05:48]} Nxc6 {[%emt 0:06:38]} 7. d4 {[%emt 0:01:37]} cxd4 {[%emt 0:05:15]} 8. Nxd4 {[%emt 0:00:12] LiveBook: 529 Games} Be7 {[%emt 0:10:50]} 9. Nxc6 {[%emt 0:05:52]} dxc6 {[%emt 0:05:23]} 10. Qg4 {[%emt 0:03:56]} Bf6 {[%emt 0:04:59] B30: Sicilian: 2...Nc6 3 Bb5, lines without ...g6} 11. Qg3 {[%emt 0:11:36]} (11. Rd1 Qe7 12. Be3 e5 13. Qe2 b5 14. a4 b4 15. Qc4 Qb7 16. Na2 a5 17. Nc1 O-O 18. Nb3 {½-½ (36) Safarli,E (2620)-Gagunashvili,M (2570) Tbilisi 2012}) 11... Bxc3 $146 {[%emt 0:17:04]} ({Predecessor:} 11... e5 12. Be3 O-O 13. Bc5 Re8 14. Rfd1 Qc7 15. Bd6 Qb6 16. Na4 Qb5 17. b3 Be6 18. c4 {1-0 (51) Jakic,I (2404)-Novak,K (2069) Bosnjaci 2014}) 12. Qxc3 {[%emt 0:10:01]} f6 {[%emt 0:04:44]} 13. Be3 {[%emt 0:04:35]} O-O {[%emt 0:02:14]} 14. Rad1 {[%emt 0:00:27]} Qc7 {[%emt 0:02:29]} 15. Bc5 {[%emt 0:01:06]} Re8 {[%emt 0:03:12]} 16. Bd6 {[%emt 0:02:39]} Qf7 {[%emt 0:02:05]} 17. e5 {[%emt 0:03:43]} Rd8 {[%emt 0:09:51]} 18. exf6 {[%emt 0:01:04]} gxf6 {[%emt 0:01:31] [#]} 19. Rd3 $1 {[%emt 0:01:29]} Kh8 {[%emt 0:01:14]} 20. Rfd1 {[%emt 0:04:02]} Rg8 {[%emt 0:03:45]} 21. Rf3 {[%emt 0:01:00]} Rg6 {[%emt 0:01:57] [#]} 22. Be5 $1 {[%emt 0:04:59]} Kg7 {[%emt 0:01:29]} 23. Rdd3 {[%emt 0:04:31]} Bd7 {[%emt 0:02:12] [#]} 24. Rxf6 $1 {[%emt 0:03:29]} Rxf6 {[%emt 0:02:51]} 25. Rg3+ {[%emt 0:01:44]} Kf8 {[%emt 0:01:22]} 26. Bxf6 {[%emt 0:01:10]} (26. Bd6+ $142 Ke8 {[#]} 27. Rg8+ $1 {[%mdl 512]} Qxg8 28. Qxf6 Qg7 29. Qxg7 Kd8 30. Qg5+ Kc8 31. Qg8+ Be8 32. Qxe8#) 26... b6 {[%emt 0:03:16]} 27. Qd4 {[%emt 0:00:56]} (27. Bh4 $142 e5 28. Qxe5 Bg4 29. Rxg4 Qg6 30. Qe7+ Kg8 31. Rxg6+ hxg6 32. Bf6 Ra7 33. Qe8+ Kh7 34. Qh8#) 27... Qe8 {[%emt 0:03:29]} 28. Qf4 {[%emt 0:01:13]} Ra7 {[%emt 0:00:58]} 29. Qh6+ {[%emt 0:00:20]} Kf7 {[%emt 0:00:08]} 30. Qg7# 1-0

[Event "FRA-ch Youth U16 2018"]
[Site "Agen"]
[Date "2018.04.16"]
[Round "2"]
[White "Conti, Anne-Marie"]
[Black "Destic, Elena"]
[Result "1-0"]
[ECO "E15"]
[WhiteElo "1865"]
[BlackElo "1549"]
[Annotator "NA RC"]
[PlyCount "57"]
[EventDate "2018.??.??"]
[EventType "swiss"]
[EventCountry "FRA"]
[SourceTitle "playchess.com"]
[Source "ChessBase"]
[SourceQuality "1"]
[TimeControl "5400+30"]

{[%evp 10,57,12,-13,10,0,-8,-2,4,32767,32767,32767,32767,32767,32767,32767,32767,32767,32767,32767,32767,32767,8,-16,-27,-35,0,0,32767,32767,78,32767,62,32767,300,288,308,291,321,350,385,365,305,366,425,32767,423,458,462,439]} 1. d4 {[%emt 0:00:00]} Nf6 {[%emt 0:00:05]} 2. c4 {[%emt 0:00:00]} e6 {[%emt 0:00:04]} 3. Nf3 {[%emt 0:00:01]} b6 {[%emt 0:01:11]} 4. g3 {[%emt 0:00:46]} Bb7 {[%emt 0:00:22]} 5. Bg2 {[%emt 0:00:13]} c5 {[%emt 0:03:04]} 6. e3 {[%emt 0:01:32] LiveBook: 3 Games} (6. d5 $14) 6... d5 {[%emt 0:07:52] E16: Queen's Indian: 4 g3 Bb7 5 Bg2 Bb4+} (6... Be7 7. O-O O-O 8. b3 cxd4 9. exd4 d5 10. Ne5 Nc6 11. Bb2 Rc8 12. Nd2 Rc7 13. Rc1 dxc4 14. Ndxc4 Nb4 15. Bxb7 Rxb7 16. a3 Nbd5 17. b4 Qe8 18. Qb3 {0-1 (48) Tugui,A (2366)-Hansen,T (2475) Maastricht 2013}) 7. Ne5 {[%emt 0:06:33]} Nbd7 {[%emt 0:01:42]} 8. Qa4 {[%emt 0:02:37]} Bd6 {[%emt 0:08:53]} 9. Nxd7 {[%emt 0:07:27]} Qxd7 {[%emt 0:04:01]} 10. Qxd7+ {[%emt 0:04:13]} Nxd7 $146 {[%emt 0:00:35]} ({Find the theoretical novelty and annotate with similar games:} 10... Kxd7 11. dxc5 Bxc5 12. Nc3 Kd6 13. a3 a5 14. b3 {1-0 (48) Shamsutdinova,K (1617)-Izbekova,E (1513) Sochi 2017}) 11. Nc3 {[%emt 0:00:11]} cxd4 {[%emt 0:01:30]} 12. exd4 {[%emt 0:01:15]} Bb4 {[%emt 0:01:18]} 13. Bd2 {[%emt 0:16:04]} Bxc3 {[%emt 0:02:50]} 14. Bxc3 {[%emt 0:02:34]} O-O {[%emt 0:14:59]} 15. b3 {[%emt 0:17:50]} Rac8 {[%emt 0:03:42]} 16. O-O {[%emt 0:03:16]} Ba6 {[%emt 0:02:05]} 17. Bb4 {[%emt 0:00:04]} Rfe8 {[%emt 0:00:24]} 18. Rfc1 {[%emt 0:03:57]} dxc4 {[%emt 0:11:31]} 19. bxc4 {[%emt 0:08:44]} e5 {[%emt 0:14:50]} ({Of course not} 19... Bxc4 $6 20. Bb7 $16) (19... Rxc4 $11 20. Rxc4 Bxc4) 20. Bh3 {[%emt 0:03:40]} Rc7 {[%emt 0:07:27]} 21. Bd6 {[%emt 0:00:47]} Rb7 $2 {[%emt 0:03:14]} ({Black should try} 21... Rxc4 $14 22. Bxd7 Rd8) 22. c5 {[%emt 0:09:06]} bxc5 {[%emt 0:02:27]} 23. dxc5 {[%emt 0:00:15]} Nb8 {[%emt 0:02:12]} 24. c6 {[%emt 0:02:28]} Rb6 {[%emt 0:00:18]} 25. Bxb8 {[%emt 0:01:03]} Rbxb8 {[%emt 0:00:21]} 26. c7 {[%emt 0:00:08]} Ra8 {[%emt 0:00:22]} 27. Bd7 {[%emt 0:00:22]} Rf8 {[%emt 0:00:29]} 28. Rc5 {[%emt 0:01:48]} Bb7 {[%emt 0:04:10]} 29. Rac1 $18 {[%emt 0:00:19]} 1-0

[Event "FRA-ch Youth U16 2018"]
[Site "Agen"]
[Date "2018.04.16"]
[Round "2"]
[White "Andre, Victoria"]
[Black "Aubert, Estee"]
[Result "0-1"]
[ECO "B40"]
[WhiteElo "1575"]
[BlackElo "1892"]
[Annotator "NA RC"]
[PlyCount "76"]
[EventDate "2018.??.??"]
[EventType "swiss"]
[EventCountry "FRA"]
[SourceTitle "playchess.com"]
[Source "ChessBase"]
[SourceQuality "1"]
[TimeControl "5400+30"]

{[%evp 14,75,8,32767,32767,32767,36,-50,32767,-40,-30,32767,32767,32767,32767,32767,32767,32767,32767,32767,32767,32767,32767,32767,32767,-105,32767,-101,-97,-146,-143,-150,-147,-207,32767,-227,32767,32767,32767,-109,-88,-95,-102,-100,-89,-101,-6,-9,0,-75,32767,-45,-52,-58,0,-140,-68,-61,-52,-937,-833,-813,-825,-781]} 1. e4 {[%emt 0:00:00]} c5 {[%emt 0:00:08]} 2. Nf3 {[%emt 0:00:00]} e6 {[%emt 0:00:09]} 3. c3 {[%emt 0:00:00]} Nf6 {[%emt 0:00:17]} 4. e5 {[%emt 0:00:22]} Nd5 {[%emt 0:00:19]} 5. d4 {[%emt 0:00:18]} cxd4 {[%emt 0:00:06]} 6. cxd4 {[%emt 0:00:05]} d6 {[%emt 0:00:14]} 7. a3 {[%emt 0:01:02]} Qc7 {[%emt 0:02:50] B22: Sicilian: 2 c3} (7... Be7 8. Bd3 O-O 9. O-O b6 10. Qc2 g6 11. Bh6 Re8 12. Nbd2 Ba6 13. Bxa6 Nxa6 14. Ne4 dxe5 15. Nxe5 Rc8 {1-0 (51) Wang,H (2709)-Harikrishna,P (2744) Huaian 2017}) 8. Bd3 {[%emt 0:03:57]} Be7 {[%emt 0:01:47]} 9. O-O {[%emt 0:00:40]} Nc6 {[%emt 0:00:38]} 10. Qc2 $146 {[%emt 0:02:47]} (10. exd6 $14 Qxd6 11. Re1) ({Predecessor:} 10. Re1 O-O 11. Qc2 h6 12. Qe2 f5 13. exf6 Nxf6 14. Nc3 a6 15. Ne4 d5 16. Ng3 Bd6 17. b4 {½-½ (84) Nitish,B (2270)-Seo,J (2389) Stockholm 2018}) 10... dxe5 {[%emt 0:03:41]} 11. dxe5 {[%emt 0:01:44]} Nxe5 {[%emt 0:01:29]} 12. Nxe5 {[%emt 0:20:28]} Qxe5 {[%emt 0:00:13]} 13. Bd2 {[%emt 0:02:43]} Bd7 {[%emt 0:03:45]} 14. Nc3 {[%emt 0:08:30]} Rc8 {[%emt 0:05:09]} 15. Qb3 {[%emt 0:05:57]} Bc6 {[%emt 0:15:03]} 16. Nb5 {[%emt 0:05:24]} Bc5 {[%emt 0:02:38]} 17. Rac1 {[%emt 0:02:29]} Bb6 {[%emt 0:00:57]} 18. Rfe1 {[%emt 0:01:25]} Qb8 {[%emt 0:00:05]} 19. a4 {[%emt 0:11:02]} (19. Rc4 $15) 19... O-O {[%emt 0:03:34]} 20. a5 {[%emt 0:04:06]} Bd8 {[%emt 0:00:28]} 21. Rc2 {[%emt 0:03:57]} Bf6 {[%emt 0:01:23]} 22. Rec1 {[%emt 0:01:44]} Rcd8 {[%emt 0:00:52]} 23. Bc4 {[%emt 0:05:44]} Be5 {[%emt 0:05:32]} 24. h3 {[%emt 0:04:02]} Bf4 {[%emt 0:01:44]} 25. Bxd5 {[%emt 0:04:39]} Bxd5 {[%emt 0:07:12]} 26. Qb4 {[%emt 0:00:28]} Bxd2 {[%emt 0:03:52]} 27. Rxd2 {[%emt 0:00:02]} Rc8 {[%emt 0:01:02]} 28. Rdc2 {[%emt 0:00:56]} Rc6 {[%emt 0:00:50]} 29. Nc3 $1 {[%emt 0:03:57]} Bc4 {[%emt 0:13:12]} ({Black should play} 29... Rfc8 $17 30. Rd1 h6) 30. Na4 {[%emt 0:00:58]} Bd5 {[%emt 0:00:22]} 31. Nc3 {[%emt 0:00:07]} Rd6 {[%emt 0:01:51]} 32. Nxd5 {[%emt 0:01:07]} Rxd5 {[%emt 0:00:09]} ({Much weaker is} 32... exd5 $6 33. Rc7 $14) 33. Rc7 {[%emt 0:00:29] [#]} b6 {[%emt 0:01:40]} (33... Rd1+ $1 $15 {[%mdl 512]} 34. Rxd1 Qxc7) 34. R1c6 {[%emt 0:04:03]} (34. a6 $11) 34... Rd1+ {[%emt 0:00:19]} (34... Rxa5 $17 35. Qf4 Ra1+ 36. Kh2 Rd1) 35. Kh2 {[%emt 0:00:09]} Rd7 {[%emt 0:01:03]} 36. Qc4 $2 {[%emt 0:01:59]} (36. axb6 $15 axb6 37. Qf4) 36... Rc8 {[%emt 0:01:00]} 37. axb6 {[%emt 0:00:04]} axb6 $19 {[%emt 0:00:07]} 38. Rxb6 {[%emt 0:00:29]} Qxc7+ {[%emt 0:00:33]} 0-1

[Event "FRA-ch Youth U16 2018"]
[Site "Agen"]
[Date "2018.04.16"]
[Round "2"]
[White "Lemire, Salomee"]
[Black "Bellahcene, Meriem"]
[Result "0-1"]
[ECO "B35"]
[WhiteElo "1530"]
[BlackElo "1862"]
[Annotator "NA RC"]
[PlyCount "100"]
[EventDate "2018.??.??"]
[EventType "swiss"]
[EventCountry "FRA"]
[SourceTitle "playchess.com"]
[Source "ChessBase"]
[SourceQuality "1"]
[TimeControl "5400+30"]

{[%evp 15,92,40,33,36,32767,32767,8,0,14,32767,32767,32767,32767,32767,32767,32767,32767,32767,32767,32767,32767,-160,-38,-105,-99,-104,-88,-130,32767,32767,32767,32767,-135,-152,32767,-176,-176,-188,-204,-199,-203,-201,-215,32767,-222,-269,-278,-271,-277,-272,-282,-279,-258,-285,-258,-242,-258,-241,-269,32767,-296,-308,-273,-1058,-239,-195,-217,-343,32767,-267,-357,-389,-447,-504,-483,-397,-365,-369,-444]} 1. e4 {[%emt 0:00:00]} c5 {[%emt 0:00:04]} 2. Nf3 {[%emt 0:00:00]} Nc6 {[%emt 0:00:05]} 3. d4 {[%emt 0:00:00]} cxd4 {[%emt 0:00:11]} 4. Nxd4 {[%emt 0:00:00]} g6 {[%emt 0:00:19]} 5. Nc3 {[%emt 0:00:03]} Bg7 6. Be3 {[%emt 0:00:11]} Nf6 {[%emt 0:00:59]} 7. Bc4 {[%emt 0:00:25]} Qa5 {[%emt 0:00:56]} 8. O-O {[%emt 0:03:51]} O-O {[%emt 0:00:28]} 9. Bb3 {[%emt 0:09:06] LiveBook: 604 Games} d6 {[%emt 0:00:41]} 10. Qd2 {[%emt 0:05:35]} Ng4 {[%emt 0:04:23]} (10... Nxd4 $15 11. Qxd4 Ng4) 11. Nxc6 {[%emt 0:03:55]} bxc6 {[%emt 0:00:21]} 12. Nd5 {[%emt 0:08:11]} Qd8 {[%emt 0:02:07]} 13. Nc3 {[%emt 0:04:45]} Nxe3 {[%emt 0:02:39]} 14. Qxe3 {[%emt 0:00:27]} Qb6 {[%emt 0:06:58] B70: Sicilian Dragon: 6 g3 and 6 Be2 (without a later Be3)} (14... a5 15. f4 Rb8 16. Kh1 Ba6 17. Rfe1 c5 18. e5 c4 19. Ba4 Rxb2 20. Rad1 Bb7 21. exd6 exd6 22. Nb5 {0-1 (31) Torres,F (1974)-Kantans,T (2338) Caldas Novas 2011}) 15. Qd2 $146 {[%emt 0:13:47]} ({Find the theoretical novelty and annotate with similar games:} 15. Qg3 Bb7 16. Nd1 d5 17. exd5 cxd5 18. c3 Rad8 19. Kh1 e5 20. f4 e4 21. Ne3 a5 22. f5 Qd6 23. fxg6 hxg6 24. Qf2 Qe7 25. Nc2 Qd7 26. Nd4 Ba6 27. Rfe1 {½-½ (25) Baiburin,I (2010)-Foniak,I (2032) Sterlitamak 2010}) 15... Rb8 {[%emt 0:05:50]} 16. Kh1 {[%emt 0:05:57]} Ba6 {[%emt 0:03:56]} 17. Rfe1 {[%emt 0:04:15]} Qd4 {[%emt 0:05:13]} 18. Qg5 {[%emt 0:04:22]} (18. Qxd4 $142 Bxd4 19. Kg1) 18... Bf6 {[%emt 0:11:13]} (18... Qxf2 $17 19. Qxe7 Be5) 19. Qa5 {[%emt 0:02:44]} ({White should play} 19. Qg3 $15) 19... Qb6 {[%emt 0:03:54]} 20. Qxb6 {[%emt 0:00:08]} Rxb6 {[%emt 0:02:03]} 21. Re3 {[%emt 0:01:29]} e6 {[%emt 0:10:43]} 22. Rf3 {[%emt 0:10:11]} Bg7 {[%emt 0:00:36]} 23. Rd1 {[%emt 0:04:37]} d5 {[%emt 0:01:31]} 24. exd5 {[%emt 0:00:35]} cxd5 {[%emt 0:00:14]} 25. Rd2 {[%emt 0:06:40]} Rc8 {[%emt 0:01:46]} 26. Na4 {[%emt 0:04:26]} Rbc6 {[%emt 0:00:56]} 27. Nc3 {[%emt 0:01:59]} Bxc3 {[%emt 0:00:25]} 28. bxc3 {[%emt 0:00:37]} Rxc3 {[%emt 0:00:07]} 29. Rf4 {[%emt 0:00:38]} Bc4 {[%emt 0:02:31]} 30. Bxc4 {[%emt 0:01:10]} R8xc4 {[%emt 0:00:58]} 31. Rxc4 {[%emt 0:00:11]} Rxc4 {[%emt 0:00:03]} 32. g3 {[%emt 0:00:29]} Kf8 {[%emt 0:02:52]} 33. Kg2 {[%emt 0:00:47]} Ke7 {[%emt 0:00:06]} 34. Kf3 {[%emt 0:00:41]} Rc3+ {[%emt 0:00:31]} 35. Rd3 {[%emt 0:00:58]} Rxc2 {[%emt 0:00:10]} 36. Ra3 {[%emt 0:00:06]} Rc7 {[%emt 0:00:10]} 37. Kf4 {[%emt 0:00:19]} Kf6 {[%emt 0:01:24]} 38. Ke3 {[%emt 0:01:05]} Ke5 {[%emt 0:02:53]} 39. g4 $2 {[%emt 0:02:23]} (39. Ra4) 39... f5 $2 {[%emt 0:01:23]} (39... Rc3+ 40. Rxc3 d4+ 41. Ke2 dxc3) 40. f4+ {[%emt 0:00:24] [#]} Kd6 $1 {[%emt 0:06:14]} 41. g5 {[%emt 0:00:21]} Rc2 {[%emt 0:03:59]} 42. Ra6+ {[%emt 0:01:12]} (42. Rxa7 $142 Rxh2 43. a4) 42... Kc5 {[%emt 0:00:49]} 43. h4 {[%emt 0:01:05]} d4+ {[%emt 0:03:43]} 44. Kf3 {[%emt 0:00:54]} Rc3+ {[%emt 0:01:19]} 45. Ke2 {[%emt 0:00:17]} Re3+ {[%emt 0:00:42]} 46. Kd2 $19 {[%emt 0:00:28]} Rh3 {[%emt 0:01:08]} 47. Rxa7 {[%emt 0:00:44]} Rxh4 {[%emt 0:00:09]} 48. Ra5+ {[%emt 0:00:25]} Kc4 {[%emt 0:00:31]} 49. Ra4+ {[%emt 0:00:12]} Kd5 {[%emt 0:00:15]} 50. Ra5+ {[%emt 0:00:57]} Ke4 {[%emt 0:00:11]} 0-1